Cogmind - Beta 16 @@@ ROGUE MODE // 2025.11.10 @ 10:49:46 Player: Mozco Result: Self-destructed Performance ------------- Evolutions (2) 1000 Regions Visited (6) 1200 Robots Destroyed (106) 530 Value Destroyed (2818) 2818 Prototype IDs (9) 180 Alien Tech Used (0) 0 Bonus (1097) 1097 TOTAL SCORE: 6825 Bonus ------- High Alert Combat Kills 284 Follower Combat Kills 197 Entered Garrisons 200 Used RIF Installer 500 Friendly Fire -84 Cogmind --------- Core Integrity 429/550 Matter 238/300 Energy 100/100 System Corruption 0% Temperature Cool (0) Movement Walking (175) Ox1 Location -8/Materials Parts ------- > --- POWER (1) -------- (None) > --- PROPULSION (4) --- Aluminum Leg Aluminum Leg Aluminum Leg > --- UTILITY (4) ------ Cooling System High-capacity Storage Unit Structural Scanner Relay Coupler [Sentry] (14) > --- WEAPON (2) ------- Advanced Beam Cannon Advanced Beam Cannon > --- INVENTORY (20) --- Heavy Ion Engine Fission Core Improved Aluminum Leg Carbon-fiber Leg Carbon-fiber Leg Flexi-carbon Leg Structural Scanner Experimental Sensor Array Relay Coupler [Swarmer] (35) Trap Extractor (0/4) Pulse Rifle Improved EM Pulse Cannon Improved EM Pulse Cannon Improved EM Pulse Cannon Heavy Particle Cannon Heavy Missile Launcher Precision Rocket Launcher Remote Datajack Plasma Cutter Great Maul Peak State ------------ > --- POWER ------------ Heavy Ion Engine > --- PROPULSION ------- Aluminum Leg Aluminum Leg Aluminum Leg Carbon-fiber Leg > --- UTILITY ---------- Cooling System High-capacity Storage Unit Structural Scanner Experimental Sensor Array > --- WEAPON ----------- Improved Medium Laser Improved Medium Laser > --- INVENTORY -------- Heavy Ion Engine Fission Core Aluminum Leg Aluminum Leg Improved Aluminum Leg Flexi-carbon Leg Structural Scanner Relay Coupler [Swarmer] Relay Coupler [Sentry] Trap Extractor Pulse Rifle Advanced Beam Cannon Advanced Beam Cannon Advanced Beam Cannon Heavy Particle Cannon Rocket Launcher Precision Rocket Launcher Remote Datajack Plasma Cutter Great Maul [Rating: 33] Favorites ----------- Power Heavy Ion Engine Engine Heavy Ion Engine Power Core Fission Core Propulsion Aluminum Leg Leg Aluminum Leg Utility High-capacity Storage Unit Device Structural Scanner Storage High-capacity Storage Unit Hackware Relay Coupler [NC] Protection Medium Armor Plating Weapon Advanced Beam Cannon Energy Gun Improved Medium Laser Energy Cannon Advanced Beam Cannon Launcher Rocket Launcher Special Weapon Remote Datajack Impact Weapon Great Maul Build | -11 -10 -10 -9 -9 -9 -8 ------- Run | Yrd Mat Min Mat Sto Gar Mat Slots Evolved 4 | . . . 2 . . 2 Power . | . . . . . . . Propulsion 2 | . . . 1 . . 1 Utility 2 | . . . 1 . . 1 Weapon . | . . . . . . . Parts Attached 74 | 7 2 . 16 24 13 12 Power 9 | 2 . . 1 4 1 1 Engine 8 | 2 . . 1 4 . 1 Core 1 | . . . . . 1 . Reactor . | . . . . . . . Propulsion 30 | 2 . . 7 9 8 4 Treads . | . . . . . . . Leg 30 | 2 . . 7 9 8 4 Wheel . | . . . . . . . Hover . | . . . . . . . Flight . | . . . . . . . Utility 10 | 1 2 . 2 2 2 1 Device 5 | . 1 . 1 2 1 . Storage 2 | 1 1 . . . . . Processor . | . . . . . . . Hackware 2 | . . . . . 1 1 Protection 1 | . . . 1 . . . Artifact . | . . . . . . . Weapon 25 | 2 . . 6 9 2 6 Energy Gun 10 | 2 . . 5 2 . 1 Energy Cannon 9 | . . . . 5 1 3 Ballistic Gun . | . . . . . . . Ballistic Cannon . | . . . . . . . Launcher 4 | . . . 1 2 . 1 Special Weapon 1 | . . . . . 1 . Impact Weapon 1 | . . . . . . 1 Slashing Weapon . | . . . . . . . Piercing Weapon . | . . . . . . . Special Melee Weapon . | . . . . . . . Unidentified Prototypes 5 | . . . 2 3 . . Parts Lost 10 | . . . 5 2 1 2 Power 2 | . . . 1 . . 1 Propulsion 4 | . . . 2 1 . 1 Utility 2 | . . . 1 . 1 . Weapon 2 | . . . 1 1 . . Highest Loss Streak 4 | . . . 4 1 1 2 To Critical Strikes . | . . . . . . . Average Backups 18 | . 5 10 18 19 19 19 Power 1 | . 1 1 1 1 2 2 Propulsion 6 | . 3 8 7 7 5 3 Utility 2 | . . . 1 2 4 4 Weapon 6 | . 1 1 6 7 7 7 Tool/Special . | . . . . . . . Unused Backups 23 | . . . 6 6 . 11 Power 4 | . . . 1 2 . 1 Propulsion 5 | . . . . 3 . 2 Utility 2 | . . . . . . 2 Weapon 11 | . . . 5 1 . 5 Tool/Special 1 | . . . . . . 1 Average Slot Usage (%) 94 | . 93 100 91 98 90 98 Engine 10 | . 14 14 9 11 11 9 Leg 32 | . 28 28 33 32 33 36 Device 16 | . 7 14 13 21 12 20 Storage 10 | . 14 14 11 11 11 9 Hackware 1 | . . . . . . 6 Energy Gun 9 | . 28 28 20 5 1 5 Energy Cannon 8 | . . . . 15 12 7 Launcher 2 | . . . . . 8 . Peak Build Rating 33 | 6 8 9 19 28 23 33 Average Rating 19 | 4 6 8 16 19 19 28 On Entrance 13 | . 6 8 9 19 28 23 Avg Prop Armor Cover (%) 8 | . . . 8 . . . Naked Turns . | . . . . . . . Heaviest Build 63 | 14 50 50 63 63 59 63 Greatest Support 45 | 20 20 20 30 30 30 45 Greatest Overweight (x) 2 | . 2 2 2 2 1 1 Average Overweight (x) 1 | . . 2 1 1 1 1 Largest Inventory Capacity 20 | 8 20 20 20 20 20 20 Average Capacity 19 | 6 15 20 20 20 20 20 Most Carried 20 | 2 10 12 20 20 20 20 Average Carried 18 | . 5 10 18 19 19 19 Final Capacity 20 | 8 20 20 20 20 20 20 Final Carried 20 | 2 10 12 20 20 20 20 Class Distribution -------------------- 90% | Mutant 6% | Commander-Mutant 3% | Scavenger-Mutant Dominant Class ---------------- Mutant | -10/Materials Mutant | -10/Mines Mutant | -9/Materials Mutant | -9/Storage Mutant | -9/Garrison Mutant | -8/Materials Resources | -11 -10 -10 -9 -9 -9 -8 ----------- Run | Yrd Mat Min Mat Sto Gar Mat Matter Collected 1341 | 238 . 52 182 295 327 247 Remotely . | . . . . . . . Salvage Created 3744 | . . 129 1200 1382 460 573 Parts 225 | . . 13 65 81 36 30 Haulers Intercepted 9 | . . . 3 5 . 1 Recyclers Shooed 4 | . . 1 1 1 . 1 Parts Field Recycled . | . . . . . . . Retrieved Matter . | . . . . . . . Parts Self-Destructed . | . . . . . . . Prevented . | . . . . . . . Parts Restored . | . . . . . . . Kills | -11 -10 -10 -9 -9 -9 -8 ------- Run | Yrd Mat Min Mat Sto Gar Mat Combat Hostiles Destroyed 77 | . . 2 18 25 23 9 Guns 28 | . . 2 13 8 3 2 Cannons 27 | . . . . 13 10 4 AOE 18 | . . . 3 4 9 2 Classes Destroyed 15 | . . 3 8 1 1 2 Worker 6 | . . 2 1 3 . . Builder 3 | . . . 2 1 . . Tunneler 2 | . . 2 . . . . Hauler 9 | . . . 3 5 . 1 Recycler 5 | . . . 3 1 . 1 Mechanic 1 | . . . 1 . . . Operator 1 | . . . . 1 . . Watcher 4 | . . . 1 1 . 2 Swarmer 19 | . . . 3 2 14 . Grunt 36 | . . . 11 16 4 5 Brawler 1 | . . . . . . 1 Sentry 14 | . . . 4 7 2 1 Hunter 2 | . . . . . . 2 Programmer 3 | . . . . . 3 . Assembled 2 | . . 2 . . . . Best Kill Streak 7 | . . 4 5 7 6 4 Combat Bots Only 6 | . . 2 4 6 6 3 Max Kills in Single Turn 3 | . . 1 3 3 2 2 Gunslinging . | . . . . . . . Exploded 2 | . . . 2 2 2 1 Melee . | . . . . . . . Uniques/NPCs Destroyed . | . . . . . . . Combat | -11 -10 -10 -9 -9 -9 -8 -------- Run | Yrd Mat Min Mat Sto Gar Mat Hostile Shots Fired 300 | . . 9 102 71 69 49 Missed 75 | . . 2 21 23 11 18 Hits 225 | . . 7 81 48 58 31 Projectile 225 | . . 7 81 48 58 31 Critical Strikes 6 | . . . . 1 3 2 Damage Taken 3256 | . . 108 1050 730 666 702 Core 488 | . . 29 111 138 89 121 Absorbed by Shields . | . . . . . . . Regen/Repaired (Parts) 107 | . . . . 72 . 35 Core Remaining (%) 67 | 100 . 88 . . 15 . Volleys Fired 258 | . . 10 70 81 56 41 Largest 2 | . . 2 2 2 2 2 Hottest 137 | . . 80 112 136 136 137 Shots Fired 414 | . . 20 123 138 72 61 Gun 208 | . . 20 121 42 7 18 Cannon 173 | . . . . 92 53 28 Launcher 21 | . . . 2 4 12 3 Special 12 | . . . . . . 12 Kinetic . | . . . . . . . Thermal 300 | . . . 68 134 60 38 Explosive 21 | . . . 2 4 12 3 Electromagnetic 81 | . . 20 53 . . 8 Robot Hit Streak 19 | . . 8 19 14 12 7 Robot Miss Streak 5 | . . 1 3 3 5 3 Penetration Max . | . . . . . . . Secondary Targets 4 | . . 1 3 . . . Max Gunslinging Chain 1 | . . 1 1 . . . Shots Hit Robots 268 | . . 14 87 84 38 45 Core Hits 134 | . . 8 38 44 26 18 Critical Kills 2 | . . . . 1 1 . Critical Parts Destroyed 2 | . . . . . . 2 Critical Strikes 10 | . . . 4 3 1 2 Burn 5 | . . . 3 2 . . Meltdown 2 | . . . . 1 1 . Corrupt 1 | . . . 1 . . . Smash 2 | . . . . . . 2 Melee Attacks 4 | . . . . . . 4 Impact 4 | . . . . . . 4 Slashing . | . . . . . . . Piercing . | . . . . . . . Sneak Attacks 1 | . . . . . . 1 Combat Hostiles . | . . . . . . . Follow-up Attacks . | . . . . . . . Damage Inflicted 7524 | . . 170 1931 2478 1683 1262 Guns 2413 | . . 170 1533 467 56 187 Cannons 2357 | . . . . 1224 708 425 Explosions 2585 | . . . 391 782 919 493 Melee 139 | . . . . . . 139 Ramming 30 | . . . 7 5 . 18 Kinetic . | . . . . . . . Thermal 3963 | . . . 1075 1691 764 433 Explosive 2386 | . . . 192 782 919 493 Electromagnetic 1006 | . . 170 657 . . 179 Impact 139 | . . . . . . 139 Slashing . | . . . . . . . Piercing . | . . . . . . . Highest Corruption 4 | . . . . . 4 . Average Corruption 3 | . . . . . 3 . Corruption Purged . | . . . . . . . Corruption Blocked . | . . . . . . . Effects 1 | . . . . . 1 . Data Loss (major) 1 | . . . . . 1 . Overload Shots . | . . . . . . . Overflow Damage 326 | . . . 40 70 96 120 Projectiles 8 | . . . . 3 5 . Explosions 242 | . . . 40 67 91 44 Melee 76 | . . . . . . 76 Knockbacks . | . . . . . . . Impact . | . . . . . . . Kinetic . | . . . . . . . Secondary . | . . . . . . . Self-Inflicted Damage 172 | . . . 123 . 49 . Shots 5 | . . . 4 . 1 . Rammed . | . . . . . . . Targets Rammed 4 | . . . 1 2 . 1 Kicked 4 | . . . 1 2 . 1 Crushed . | . . . . . . . Highest Temperature 489 | . . 90 489 144 15 17 Average Temperature 78 | . . 32 112 32 7 8 Received Heat Transfer 885 | . . . 411 297 69 108 Effects 2 | . . . 2 . . . Energy Bleed 1 | . . . 1 . . . Short Circuit 1 | . . . 1 . . . Siege Activations . | . . . . . . . Martial Activations . | . . . . . . . Shielding Activations . | . . . . . . . Robots Disrupted . | . . . . . . . Combat Hostiles . | . . . . . . . Robots Corrupted 5 | . . . 3 . . 2 Combat Hostiles 2 | . . . 1 . . 1 Parts Fried 10 | . . . 5 . . 5 Impact Corruptions 3 | . . . . . . 3 Robots Melted 3 | . . . 1 1 1 . Combat Hostiles 2 | . . . 1 . 1 . Parts Melted 23 | . . . 6 10 6 1 Heat Transferred 7650 | . . . 2322 3256 1221 851 Parts Sabotaged . | . . . . . . . Parts Stolen . | . . . . . . . Parts Stripped . | . . . . . . . Power Chain Reactions 4 | . . . 4 . . . Alert | -11 -10 -10 -9 -9 -9 -8 ------- Run | Yrd Mat Min Mat Sto Gar Mat Maximum Alert Level 4 | . . . 1 2 4 2 Low Security (%) 40 | 100 100 100 58 30 . 61 Level 1 23 | . . . 41 41 9 5 Level 2 15 | . . . . 27 7 33 Level 3 15 | . . . . . 62 . Level 4 5 | . . . . . 20 . Level 5 . | . . . . . . . High Security . | . . . . . . . Max Security . | . . . . . . . Peak Influence 1282 | . 15 10 301 517 1282 624 Initial 624 | . . . . 114 315 624 Average 358 | . 3 . 138 278 857 229 Influence Increases 3198 | . 26 20 657 1126 1017 352 Destroy 0b10 Robot/C 1700 | . . . 360 560 600 180 Destroy 0b10 Robot/NC 160 | . . 20 55 60 . 25 Destroy Leader 318 | . . . 98 162 10 48 Allied During Kill 71 | . . . . 29 36 6 Successful Hack 105 | . 26 . 11 27 37 4 Select Force Hacks 120 | . . . 60 60 . . Disable Machine 225 | . . . 30 120 15 60 Anti-Garrison Action 200 | . . . . . 200 . Destroy Structure 224 | . . . 43 33 119 29 Partial Spotted 15 | . . . . 15 . . Lose Combat Pursuer 60 | . . . . 60 . . Influence Decreases 3035 | . 26 20 386 911 221 1471 Entered New Map 986 | . . . . 157 171 658 Time Decay 1364 | . 26 20 346 574 . 398 Lost Part 90 | . . . 40 20 10 20 Lost Ally 220 | . . . . 160 40 20 Purge Threat 375 | . . . . . . 375 Squads Dispatched 10 | . . . 3 5 . 2 Investigation 4 | . . . 2 2 . . Extermination . | . . . . . . . Reinforcement 4 | . . . 1 3 . . Assault 2 | . . . . . . 2 Garrison . | . . . . . . . Intercept . | . . . . . . . Searches Triggered . | . . . . . . . Construction Impeded 2 | . . . . 2 . . Haulers Reinforced . | . . . . . . . Active Scanning Responses . | . . . . . . . Cargo Convoy Interrupts . | . . . . . . . Stealth | -11 -10 -10 -9 -9 -9 -8 --------- Run | Yrd Mat Min Mat Sto Gar Mat Distress Signals 3 | . . . 2 1 . . Communications Jammed . | . . . . . . . Distress Signals . | . . . . . . . Times Spotted 107 | . 1 2 24 35 26 19 Peak Tracking Total 6 | . 1 3 6 4 6 5 Tactical Retreats 5 | . . 1 . 4 . . Traps | -11 -10 -10 -9 -9 -9 -8 ------- Run | Yrd Mat Min Mat Sto Gar Mat Traps Triggered 8 | . . . . 3 5 . Indirectly . | . . . . . . . Trap Hack Attempts . | . . . . . . . Triggered . | . . . . . . . Disarmed 6 | . . . 6 . . . Reprogrammed . | . . . . . . . Reused . | . . . . . . . Traps Extracted . | . . . . . . . Installed . | . . . . . . . Triggered . | . . . . . . . Machines | -11 -10 -10 -9 -9 -9 -8 ---------- Run | Yrd Mat Min Mat Sto Gar Mat Machines Disabled 15 | . . . 2 8 1 4 Max in Single Turn 2 | . . . 1 2 . 2 Garrison Access 1 | . . . . . . 1 Machines Repaired . | . . . . . . . Machines Dismantled . | . . . . . . . Machines Sabotaged . | . . . . . . . Overloaded Fab Kills . | . . . . . . . Hacking | -11 -10 -10 -9 -9 -9 -8 --------- Run | Yrd Mat Min Mat Sto Gar Mat Machines Accessed 31 | . 2 . 7 15 4 3 Terminals 20 | . 2 . 4 10 4 . Fabricators . | . . . . . . . Repair Stations 3 | . . . . 2 . 1 Recycling Units 4 | . . . 2 2 . . Scanalyzers 3 | . . . 1 . . 2 Garrison Access 1 | . . . . 1 . . Total Hacks 103 | . 12 . 25 38 7 21 Successful 62 | . 7 . 16 22 3 14 Failed 38 | . 4 . 9 15 4 6 Catastrophic 7 | . . . 1 3 3 . Database Lockouts 3 | . 1 . . 1 . 1 Manual 35 | . 11 . 9 15 . . Terminals 57 | . 12 . 13 25 7 . Fabricators . | . . . . . . . Repair Stations 16 | . . . . 10 . 6 Recycling Units 4 | . . . 2 2 . . Scanalyzers 25 | . . . 10 . . 15 Garrison Access 1 | . . . . 1 . . Terminal Hacks 22 | . 6 . 4 9 3 . Part Schematic 1 | . . . . 1 . . Robot Analysis 7 | . 5 . . 2 . . Prototype ID Bank 2 | . 1 . . 1 . . Open Door 4 | . . . . 3 1 . Locate Traps 4 | . . . 3 1 . . Disarm Traps 1 | . . . 1 . . . Registered Prototypes 1 | . . . . 1 . . Garrison Registry 1 | . . . . . 1 . Security Stations 1 | . . . . . 1 . Fabricator Hacks . | . . . . . . . Repair Station Hacks 10 | . . . . 8 . 2 Scan Component 5 | . . . . 4 . 1 Repair 5 | . . . . 4 . 1 Recycling Unit Hacks . | . . . . . . . Scanalyzer 21 | . . . 9 . . 12 Insert Component 8 | . . . 5 . . 3 Analyze 10 | . . . 4 . . 6 Retrieve Study 3 | . . . . . . 3 Garrison Access Hacks 1 | . . . . 1 . . Unlock Access 1 | . . . . 1 . . Unauthorized Hacks 8 | . 1 . 3 4 . . Terminals 4 | . 1 . 1 2 . . Botnet 4 | . 1 . 1 2 . . Fabricators . | . . . . . . . Repair Stations . | . . . . . . . Recycling Units 4 | . . . 2 2 . . Tunnel 4 | . . . 2 2 . . Scanalyzers . | . . . . . . . Garrison Access . | . . . . . . . Data Cores Recovered . | . . . . . . . Used . | . . . . . . . Hacking Detections 23 | . 2 . 5 10 3 3 Full Trace Events 3 | . . . . 1 2 . Feedback Events . | . . . . . . . Feedback Blocked . | . . . . . . . Robot Schematics Acquired . | . . . . . . . Robots Built . | . . . . . . . Authchips . | . . . . . . . Time . | . . . . . . . Total Robot Build Rating . | . . . . . . . Part Schematics Acquired 8 | . . . 4 1 . 3 Parts Built . | . . . . . . . Authchips . | . . . . . . . Time . | . . . . . . . Total Part Build Rating . | . . . . . . . Part Studies Acquired 2 | . . . . . . 2 Parts Repaired 5 | . . . . 4 . 1 Time 290 | . . . . 220 . 70 Parts Recycled . | . . . . . . . Recycled Matter . | . . . . . . . Retrieved Matter . | . . . . . . . Retrieved Components . | . . . . . . . Parts Scanalyzed 8 | . . . 5 . . 3 Part Schematics Acquired 7 | . . . 4 . . 3 Parts Damaged 3 | . . . 2 . . 1 Bothacking | -11 -10 -10 -9 -9 -9 -8 ------------ Run | Yrd Mat Min Mat Sto Gar Mat Used RIF Installer 1 | . . . . . 1 . Robots Hacked 3 | . . . . . . 3 Non-combat 2 | . . . . . . 2 Combat 1 | . . . . . . 1 Robot Hacks Applied 9 | . . . . . . 9 parse_system 1 | . . . . . . 1 find_station 1 | . . . . . . 1 purge_threat 3 | . . . . . . 3 locate_traps 1 | . . . . . . 1 summon_haulers 1 | . . . . . . 1 find_garrison 1 | . . . . . . 1 formatsys_high 1 | . . . . . . 1 Relay Couplers Released 2 | . . . . . . 2 Machine Destruction 2 | . . . . . . 2 Attached 2 | . . . . . 1 1 Fabnet Peak Effective % . | . . . . . . . Robots Rewired . | . . . . . . . Allies Hacked . | . . . . . . . Hacks Repelled . | . . . . . . . Allies | -11 -10 -10 -9 -9 -9 -8 -------- Run | Yrd Mat Min Mat Sto Gar Mat Total Allies 13 | . . . . 10 2 1 Largest Group 10 | . . . . 10 2 1 Highest-Rated Group 88 | . . . . 88 70 15 Highest-Rated Ally 39 | . . . . 16 39 15 Total Orders . | . . . . . . . Ally Attacks 63 | . . . . 39 21 3 Total Damage 771 | . . . . 352 365 54 Kills 11 | . . . . 3 7 1 Allies Corrupted . | . . . . . . . Allies Melted . | . . . . . . . Intel | -11 -10 -10 -9 -9 -9 -8 ------- Run | Yrd Mat Min Mat Sto Gar Mat Active Infowar (turns) 4152 | . 85 409 1119 1634 17 888 Sensors 327 | . . . . 17 . 310 Structural 4135 | . 85 409 1119 1617 17 888 Robot Analysis Total 7 | . 5 . . 2 . . Derelict Logs Recovered . | . . . . . . . Drone Launches . | . . . . . . . Drone Recoveries . | . . . . . . . Exploration | -11 -10 -10 -9 -9 -9 -8 ------------- Run | Yrd Mat Min Mat Sto Gar Mat Turns Passed 5933 | 76 147 409 1119 1748 1477 957 Spaces Moved 2439 | 57 77 146 396 699 671 393 Core 5 | 5 . . . . . . Treads . | . . . . . . . Legs 2434 | 52 77 146 396 699 671 393 Wheels . | . . . . . . . Hover . | . . . . . . . Flight . | . . . . . . . Fastest Speed 50 | 50 120 260 190 190 190 175 Average Speed 194 | 113 178 260 205 193 190 186 Slowest Speed 260 | 120 260 260 260 260 190 190 Overloaded Moves . | . . . . . . . Propulsion Burnouts . | . . . . . . . Robots Hopped . | . . . . . . . Potential Cave-ins . | . . . . . . . Cave-ins Triggered . | . . . . . . . Exploration Rate (%) 44 | 4 17 37 47 90 78 38 Regions Visited 6 Branch Regions 2 Pre-discovered Areas 4 | . . . 2 2 . . Known Exits Taken 1 | . . . . 1 . . Unknown Exits Taken 4 | 1 1 1 1 . . . Scrap Searched . | . . . . . . . Spaces Dug 5 | . . . . . 5 . Terrain Destroyed 181 | . . . 39 31 86 25 Melee . | . . . . . . . Projectile . | . . . . . . . AOE 181 | . . . 39 31 86 25 Terrain Rammed . | . . . . . . . Walls Destroyed . | . . . . . . . Machines Disabled . | . . . . . . . Actions | -11 -10 -10 -9 -9 -9 -8 --------- Run | Yrd Mat Min Mat Sto Gar Mat Total 3217 | 64 87 157 586 967 803 553 Wait 280 | . . . 71 110 26 73 Move 2434 | 56 76 145 395 699 670 393 Hop . | . . . . . . . Pick Up 58 | 1 8 2 19 15 4 9 Fast Attach 22 | 6 2 . 5 6 1 2 Attach 12 | . . . 5 3 1 3 Detach 2 | . . . . 1 . 1 Swap 60 | 1 . . 7 21 15 16 Drop 63 | . 1 . 13 29 10 10 Fire 258 | . . 10 70 81 56 41 Melee 4 | . . . . . . 4 Ram . | . . . . . . . Kick 4 | . . . 1 2 . 1 Crush . | . . . . . . . Escape Stasis 20 | . . . . . 20 . Rewire . | . . . . . . . Trap . | . . . . . . . Miscellaneous . | . . . . . . . Route ------- -11/Scrapyard -10/Materials -10/Mines -9/Materials (discovered 2 exits: *Mat / *Sto) -9/Storage (discovered 2 exits: *Mat / Gar) -9/Garrison (discovered 3 exits: *Mat x3) -8/Materials (discovered 1 exit: [*Fac]) History --------- Turn | Location | Event 2 | -11/Scrapyard | Met Revision 17 3 | -11/Scrapyard | Discovered new exit (range 15) 77 | -11/Scrapyard | Entered Materials 103 | -10/Materials | Discovered new exit (range 6) 119 | -10/Materials | Central database locked down 224 | -10/Materials | Entered Mines 312 | -10/Mines | Build established: Mutant 427 | -10/Mines | Excavation squad dispatched 427 | -10/Mines | A large section of the Mines collapsed 522 | -10/Mines | Found a damaged Exp. Sensor Array with a note attached 527 | -10/Mines | Found Prototype Device 570 | -10/Mines | Discovered new exit (range 4) 572 | -10/Mines | Received a Rocket Launcher from a helpful Derelict 633 | -10/Mines | Entered Materials 633 | -9/Materials | Evolved 2 slots: Propulsion x1, Utility x1 901 | -9/Materials | Identified Exp. Sensor Array 1191 | -9/Materials | Discovered new exit (range 16) 1533 | -9/Materials | Lost 4 parts (1p2n1u) 1744 | -9/Materials | Discovered new exit (range 4) 1752 | -9/Materials | Entered Storage 2280 | -9/Storage | Assisted by bots powering up and referring to "LRC-V3" 2539 | -9/Storage | Discovered new exit (range 5) 2601 | -9/Storage | Build established: Commander-Mutant 2709 | -9/Storage | Core integrity fell below 50% 2728 | -9/Storage | Lost 7 allies 2988 | -9/Storage | Build established: Mutant 3214 | -9/Storage | Central database locked down 3395 | -9/Storage | Repaired Structural Scanner 3428 | -9/Storage | Repaired Cooling System 3455 | -9/Storage | Repaired Aluminum Leg 3480 | -9/Storage | Repaired Broken Exp. Sensor Array 3500 | -9/Storage | Identified exit to Garrison 3500 | -9/Storage | Entered Garrison 3566 | -9/Garrison | Triggered checkpoint 3642 | -9/Garrison | Rescued a captive Derelict 3643 | -9/Garrison | Rescued a captive Derelict 3722 | -9/Garrison | Triggered checkpoint 3723 | -9/Garrison | Triggered checkpoint 3730 | -9/Garrison | Triggered checkpoint 3740 | -9/Garrison | Triggered checkpoint 3800 | -9/Garrison | Triggered checkpoint 3927 | -9/Garrison | Discovered new exit (range 14) 4090 | -9/Garrison | Triggered checkpoint 4123 | -9/Garrison | Learned Materials security intel 4386 | -9/Garrison | Discovered new exit (range 12) 4570 | -9/Garrison | Discovered new exit (range 13) 4629 | -9/Garrison | Installed Relay Interface Framework 4671 | -9/Garrison | Discovered new exit (range 83) 4671 | -9/Garrison | Discovered new exit (range 78) 4671 | -9/Garrison | Discovered new exit (range 20) 4878 | -9/Garrison | Core integrity fell below 20% 4977 | -9/Garrison | Entered Materials 4977 | -8/Materials | Evolved 2 slots: Propulsion x1, Utility x1 5336 | -8/Materials | Repaired Broken Flexi-carbon Leg 5499 | -8/Materials | Discovered new exit (range 10) 5695 | -8/Materials | Central database locked down 5934 | -8/Materials | Self-destructed Last Messages --------------- 05896_ Acquired Carbon-fiber Leg. 05898_ K-01 Serf collects debris. 05899_ The unstable cave ceiling collapses. 05901_ K-01 Serf collects debris. 05910_ The unstable cave ceiling collapses. 05911_ K-01 Serf collects debris. 05917_ ALERT: Garrison Access compromised, dispatching multiple assault carriers. 05917_ Garrison Access disabled. 05917_ Relay Coupler [NC] tumbles out of Garrison Access. 05918_ K-01 Serf collects debris. 05919_ Knocked back. 05922_ K-01 Serf collects debris. 05923_ The unstable cave ceiling collapses. 05923_ Deuterium Engine+ blasted off. 05925_ Acquired Deuterium Engine+. 05931_ Matter Pump disabled. 05933_ Penetrated by Slug. 05934_ Deuterium Engine+ destroyed. 05934_ Aluminum Leg+ destroyed. Map ----- +----------------------------------------------------+ | ?????????????????????????????????????????????????? | | ?????????????????????????????????????????????????? | | ?????????????????????????????????????????????????? | | ?????????????????????????????????????????????????? | | ?????????????????????????????????????????????????? | | ?????????????????????????????????????????????????? | | ?????????????????????????????????????????????????? | | ?????????????????????????????????????????????????? | | ?????????????????????????????????????????????????? | | ?????????????????????????????????????????????????? | | ?????????????????????????????????????????????????? | | ?????????????????????????????????????????????????? | | ?????????????????????????????????????????????????? | | ?????????????????????????????????????????????????? | | ???????????????????????????????????????????????# | | ???????????????????????????????????????????????## | | ?????????????????????#################?????????## | | ?????????????????????#################?????????## | | ?????????????????????## # ##?????????## | | ?????????????????????## """= # ##???????????? | | ??????????????#####??## "" # """ ##???????????? | | ??????????????#####??## " "" ##???????????? | | ??????????????"#"""??## *%!# " ###?????????# | | ??????????##"?"#"G"#### = = ####????????## | | ??????????##" ";" ###### #/ # ############# | | ???? ! ! @ =%! ############ | | ???? ^ % %[== u | | ???? % %=% % ############# | | ????## ! ! # #k # ############# | | ???? # ^ ###?????????## | | ???? # """ """ """ ""% # " ###?????????## | | ?????????"" """ """ """h ## """" ##??????????## | | ?????????"" """ """ """ ## """" ##??????????## | | ?????????? ?? a ## ##??????????## | | ???????????? ! ## ##??????????## | | ????????????### ##########??????????## | | ???????????? ## ##########?????????? # | | ?????????????## ##?????????????????? + | | ?????????????## ?? # ?????????????????? # | | ?????????????## ??? # ?????????????????? # | | ???????????????????? # ?????????????????? # | | ?????????????????????????? ????????????????????? # | | ????????????????????????????????????????????????## | | ?????????????????????????????????????????????????? | | ???????????????????????????????????????????????? + | | ???????????????????????????????????????????????? # | | ???????????????????????????????????????????????? # | | ?????????????????????????????????????????????????? | | ?????????????????????????????????????????????????? | | ?????????????????????????????????????????????????? | +----------------------------------------------------+ Best States ------------- Heat Dissipation 60 Energy Generation 16 Energy Capacity 280 Matter Stores 300 Matter Capacity 300 Sight Range 16 Robot Scan Range 20 Terrain Scan Density 10 Armor Coverage 225 Evasion (%) 55 Relay Coupler Types 1 Relay Coupler Value 39 Item Schematics ----------------- Structural Scanner | -9/Materials | Scanalyzed Exp. Sensor Array | -9/Materials | Scanalyzed Aluminum Leg | -9/Materials | Scanalyzed Imp. Medium Laser | -9/Materials | Scanalyzed Adv. Treads | -9/Storage | Hacked Remote Datajack | -8/Materials | Scanalyzed Flexi-carbon Leg | -8/Materials | Scanalyzed Prc. Rocket Launcher | -8/Materials | Scanalyzed Robot Schematics ------------------ None Fabricated ------------ Nothing Repaired ---------- Structural Scanner | 20% | -9/Storage Cooling System | 68% | -9/Storage Aluminum Leg | 67% | -9/Storage Exp. Sensor Array | 62% | -9/Storage | Broken Flexi-carbon Leg | 74% | -8/Materials | Broken Studied --------- Aluminum Leg | -8/Materials | Hacked Deuterium Engine | -8/Materials | Hacked Alien Tech Used ----------------- None Achievements -------------- None Challenges ------------ None Game ------ Seed AlloyDispersionScrap Manual? 0 Play Time 00:41:55 Cumulative 242.6 hours Start 2025.11.10 @ 10:07:08 End 2025.11.10 @ 10:49:46 Sessions 1 Manual Loads 0 Difficulty Rogue Special Mode None Game No. 248 Rogue 244 Adventurer 3 Explorer 1 Win Type - Total 1 Types 1/0/0/0/0/0/0/0/0/0 Lore% 74 Gallery% 74 Achievement% 58 Wizard Run 0 Options --------- Layout 0 ASCII 0 Keyboard 0 Movement Mouse Keybinds 0 Fullscreen 2 Font 18/SmallcapsGlow Map View 76x50 Zoom Use 0% Tactical HUD 1 Map Filters NONE Filters NONE Steam 1 RUN: f775e97e-f22b-4233-a01b-efb9859ab0e5